fUST/lending_fUST_20241231
["ID","MTS","AMOUNT","RATE_DAILY","PERIOD"]
[347273637,1735648240429,-153.0,0.00020853,2]
[347273638,1735648240439,-153.0,0.00020853,2]
[347273639,1735648240449,-153.0,0.00020853,2]
[347273640,1735648240458,-153.0,0.00020853,2]
[347273641,1735648240467,-153.0,0.00020853,2]
[347273642,1735648240478,-153.0,0.00020853,2]
[347273643,1735648240487,-153.0,0.00020853,2]
[347273644,1735648240496,-153.0,0.00020853,2]
[347273645,1735648240505,-153.0,0.00020853,2]
[347273646,1735648240515,-153.0,0.00020853,2]
[347273647,1735648240524,-153.0,0.00020853,2]
[347273648,1735648240534,-153.0,0.00020853,2]
[347273649,1735648240543,-153.0,0.00020853,2]
[347273650,1735648240552,-153.0,0.00020853,2]
[347273651,1735648240562,-153.0,0.00020853,2]
[347273652,1735648240571,-153.0,0.00020853,2]
[347273653,1735648240580,-153.0,0.00020853,2]
[347273654,1735648240590,-153.0,0.00020853,2]
[347273655,1735648240599,-391.53,0.00021,2]
[347273656,1735648240609,-572.616,0.0002104,2]
[347273657,1735648240619,-500.0,0.00021095,3]
[347273658,1735648240628,-500.0,0.00021095,3]
[347273660,1735648240716,-329.49215951,0.00021095,3]
[347273661,1735648240728,-500.0,0.00021095,3]
[347273663,1735648240737,-500.0,0.00021095,3]
[347273664,1735648240746,-500.0,0.00021095,3]
[347273666,1735648240756,-500.0,0.00021095,3]
[347273667,1735648240765,-760.38,0.00021095,3]
[347273668,1735648240774,-500.0,0.00021095,3]
[347273669,1735648240784,-500.0,0.00021095,3]
[347273670,1735648240793,-500.0,0.00021095,3]
[347273672,1735648240803,-500.0,0.00021095,3]
[347273673,1735648240812,-758.03,0.00021095,3]
[347273674,1735648240822,-1264.6,0.00021095,3]
[347273676,1735648240831,-607.68,0.00021095,3]
[347273678,1735648240840,-500.0,0.00021095,3]
[347273679,1735648240850,-6061.59,0.00021095,3]
[347273680,1735648240860,-500.0,0.00021095,3]
[347273681,1735648240869,-569.93,0.00021095,3]
[347273682,1735648240878,-500.0,0.00021095,3]
[347273683,1735648240887,-1074.62354564,0.00021095,3]
[347273709,1735648243563,-326.86350648,0.00021095,3]
[347273710,1735648243595,-1174.42294788,0.00021095,3]
[347273711,1735648243605,-500.0,0.00021095,3]
[347273712,1735648243614,-689.18,0.00021095,3]
[347273713,1735648243623,-500.0,0.00021369,3]
[347273714,1735648243633,-243.6403726,0.00021369,3]
[347273715,1735648243642,-478.58312689,0.00021369,3]
[347273716,1735648243655,-488.99753875,0.00021369,3]
[347273717,1735648243671,-500.0,0.00021369,3]
[347273718,1735648243681,-500.0,0.00021369,3]
[347273719,1735648243691,-760.38,0.00021369,3]
[347273721,1735648243700,-500.0,0.00021369,3]
[347273723,1735648243710,-500.0,0.00021369,3]
[347273725,1735648243719,-500.0,0.00021369,3]
[347273727,1735648243728,-549.95816814,0.00021369,3]
[347273729,1735648243738,-758.03,0.00021369,3]
[347273731,1735648243747,-1264.6,0.00021369,3]
[347273732,1735648243756,-607.68,0.00021369,3]
[347273733,1735648243765,-500.0,0.00021369,3]
[347273734,1735648243775,-6061.59,0.00021369,3]
[347273735,1735648243784,-500.0,0.00021369,3]
[347273736,1735648243793,-569.93,0.00021369,3]
[347273737,1735648243802,-500.0,0.00021369,3]
[347273738,1735648243811,-2575.91,0.00021369,3]
[347273739,1735648243821,-500.0,0.00021369,3]
[347273740,1735648243829,-689.18,0.00021369,3]
[347273741,1735648243838,-500.0,0.00021643,3]
[347273742,1735648243848,-500.0,0.00021643,3]
[347273743,1735648243857,-500.0,0.00021643,3]
[347273744,1735648243866,-760.38,0.00021643,3]
[347273745,1735648243875,-500.0,0.00021643,3]
[347273746,1735648243884,-500.0,0.00021643,3]
[347273747,1735648243894,-500.0,0.00021643,3]
[347273748,1735648243902,-758.03,0.00021643,3]
[347273749,1735648243913,-1264.6,0.00021643,3]
[347273750,1735648243922,-607.68,0.00021643,3]
[347273751,1735648243931,-500.0,0.00021643,3]
[347273752,1735648243940,-6061.59,0.00021643,3]
[347273753,1735648243948,-500.0,0.00021643,3]
[347273754,1735648243957,-569.93,0.00021643,3]
[347273755,1735648243966,-186.32474789,0.00021643,3]
[347273756,1735648243975,-2575.91,0.00021643,3]
[347273757,1735648243985,-500.0,0.00021643,3]
[347273758,1735648243994,-689.18,0.00021643,3]
[347273759,1735648244003,-503.95250614,0.00021852,2]
[347273760,1735648244013,-500.0,0.00021917,3]
[347273761,1735648244021,-500.0,0.00021917,3]
[347273762,1735648244031,-420.12758992,0.00021917,3]
[347273763,1735648244040,-760.38,0.00021917,3]
[347273764,1735648244050,-500.0,0.00021917,3]
[347273765,1735648244059,-500.0,0.00021917,3]
[347273766,1735648244069,-500.0,0.00021917,3]
[347273767,1735648244078,-758.03,0.00021917,3]
[347273768,1735648244087,-1264.6,0.00021917,3]
[347273769,1735648244097,-607.68,0.00021917,3]
[347273770,1735648244107,-500.0,0.00021917,3]
[347273771,1735648244116,-6061.59,0.00021917,3]
[347273772,1735648244126,-500.0,0.00021917,3]
[347273773,1735648244135,-569.93,0.00021917,3]
[347273774,1735648244144,-2575.91,0.00021917,3]
[347273775,1735648244153,-500.0,0.00021917,3]
[347273776,1735648244164,-689.18,0.00021917,3]
[347273777,1735648244173,-160.0,0.00022,2]
[347273778,1735648244183,-463.0,0.00022,2]
[347273779,1735648244192,-150.0,0.00022,2]
[347273780,1735648244202,-151.0,0.00022155,7]
[347273781,1735648244211,-151.0,0.00022155,7]
[347273782,1735648244220,-151.0,0.00022155,7]
[347273783,1735648244230,-151.0,0.00022155,7]
[347273784,1735648244239,-151.0,0.00022155,7]
[347273785,1735648244248,-151.0,0.00022155,7]
[347273786,1735648244258,-151.0,0.00022155,7]
[347273787,1735648244267,-151.0,0.00022155,7]
[347273788,1735648244276,-151.0,0.00022155,7]
[347273789,1735648244285,-151.0,0.00022155,7]
[347273790,1735648244295,-151.0,0.00022155,7]
[347273791,1735648244304,-151.0,0.00022155,7]
[347273792,1735648244314,-151.0,0.00022155,7]
[347273793,1735648244323,-151.0,0.00022155,7]
[347273794,1735648244332,-151.0,0.00022155,7]
[347273795,1735648244342,-151.0,0.00022155,7]
[347273796,1735648244351,-151.0,0.00022155,7]
[347273797,1735648244360,-151.0,0.00022155,7]
[347273798,1735648244370,-151.0,0.00022155,7]
[347273799,1735648244379,-154.626524,0.00022155,7]
[347273800,1735648244389,-151.0,0.00022155,7]
[347273801,1735648244399,-294.004446,0.00022155,7]
[347273802,1735648244410,-151.0,0.00022155,7]
[347273803,1735648244419,-151.0,0.00022155,7]
[347273804,1735648244428,-151.0,0.00022155,7]
[347273805,1735648244438,-151.0,0.00022155,7]
[347273806,1735648244447,-151.0,0.00022155,7]
[347273807,1735648244456,-151.0,0.00022155,7]
[347273808,1735648244465,-500.0,0.00022155,2]
[347273809,1735648244475,-298.59194577,0.00022155,2]
[347273810,1735648244484,-551.06419879,0.00022155,2]
[347273811,1735648244493,-2173.42397677,0.00022156,2]
[347273812,1735648244503,-3101.41903367,0.00022156,2]
[347273813,1735648244512,-166.189379,0.00022156,10]
[347273814,1735648244521,-268.47867391,0.00022156,10]
[347273815,1735648244530,-151.0,0.00022156,7]
[347273816,1735648244539,-151.0,0.00022156,7]
[347273817,1735648244548,-151.0,0.00022156,7]
[347273818,1735648244557,-151.0,0.00022156,7]
[347273819,1735648244566,-151.0,0.00022156,7]
[347273820,1735648244575,-156.356344,0.00022156,7]
[347273821,1735648244585,-151.0,0.00022156,7]
[347273822,1735648244594,-151.0,0.00022156,7]
[347273823,1735648244603,-151.0,0.00022156,7]
[347273824,1735648244612,-218.041238,0.00022156,7]
[347273825,1735648244621,-151.0,0.00022156,7]
[347273826,1735648244631,-152.301829,0.00022156,7]
[347273827,1735648244640,-2138933.57494296,0.00022156,10]
[347273831,1735648246626,-503.95250614,0.00021633,2]
[347273832,1735648246636,-151.0,0.00022156,7]
[347273833,1735648246645,-35344.97470186,0.00022156,10]
[347273834,1735648246663,-9360.70927172,0.00022156,10]
[347273838,1735648280803,1329.73,0.00025,120]
[347273839,1735648464473,500.0,0.00022164,120]
[347273859,1735649396726,-278.77426,0.00013422,2]
[347273860,1735649396751,-278.77426,0.00013558,2]
[347273861,1735649396776,-278.77426,0.00013973,2]
[347273862,1735649396800,-161.64247756,0.00018289,2]
[347273888,1735649432739,-391.92452244,0.00017925,2]
[347273889,1735649432750,-391.92452244,0.00018106,2]
[347273890,1735649432761,-91.92452244,0.00018289,2]
[347273891,1735649432771,-475.99516032,0.0001829,2]
[347273898,1735649438685,-24424.00483968,0.0001829,2]
[347273899,1735649438695,-193.6580535,0.00018358,2]
[347273900,1735649438705,-210.76093885,0.00019078,2]
[347273901,1735649438715,-500.0,0.00019178,2]
[347273902,1735649438726,-500.0,0.00019178,2]
[347273903,1735649438735,-366.69748089,0.00019178,2]
[347273922,1735649440622,-11007.6220947,0.00018107,2]
[347273923,1735649440633,-633.30251911,0.00019178,2]
[347273924,1735649440645,-500.0,0.00019178,2]
[347273925,1735649440655,-500.0,0.00019178,2]
[347273926,1735649440666,-500.0,0.00019178,2]
[347273927,1735649440677,-500.0,0.00019178,2]
[347273928,1735649440688,-500.0,0.00019178,2]
[347273929,1735649440699,-500.0,0.00019178,2]
[347273930,1735649440709,-500.0,0.00019178,2]
[347273931,1735649440721,-500.0,0.00019178,2]
[347273932,1735649440731,-500.0,0.00019178,2]
[347273933,1735649440741,-500.0,0.00019178,2]
[347273934,1735649440750,-500.0,0.00019178,2]
[347273935,1735649440760,-500.0,0.00019178,2]
[347273936,1735649440769,-500.0,0.00019178,2]
[347273937,1735649440778,-410.93814902,0.00019178,2]
[347273938,1735649440788,-500.0,0.00019178,2]
[347273939,1735649440798,-645.76,0.00019178,2]
[347273940,1735649440808,-500.0,0.00019178,2]
[347273941,1735649440819,-500.0,0.00019178,2]
[347273942,1735649440829,-500.0,0.00019178,2]
[347273943,1735649440841,-500.0,0.00019178,2]
[347273944,1735649440852,-500.0,0.00019178,2]
[347273945,1735649440862,-500.0,0.00019178,2]
[347273946,1735649440873,-500.0,0.00019178,2]
[347273947,1735649440883,-500.0,0.00019178,2]
[347273948,1735649440893,-1939.84,0.00019178,2]
[347273949,1735649440902,-500.0,0.00019178,2]
[347273950,1735649440912,-697.23,0.00019178,2]
[347273952,1735649440923,-500.0,0.00019178,2]
[347273954,1735649440934,-500.0,0.00019178,2]
[347273955,1735649440943,-500.0,0.00019178,2]
[347273956,1735649440954,-500.0,0.00019178,2]
[347273957,1735649440965,-500.0,0.00019178,2]
[347273958,1735649440975,-461.51512937,0.00019178,2]
[347273959,1735649440985,-500.0,0.00019178,2]
[347273960,1735649440995,-500.0,0.00019178,2]
[347273961,1735649441005,-500.0,0.00019178,2]
[347273962,1735649441015,-1000.0,0.00019178,2]
[347273963,1735649441025,-500.0,0.00019178,2]
[347273964,1735649441035,-500.0,0.00019178,2]
[347273965,1735649441045,-500.0,0.00019178,2]
[347273966,1735649441055,-500.0,0.00019178,2]
[347273967,1735649441065,-500.0,0.00019178,2]
[347273968,1735649441075,-500.0,0.00019178,2]
[347273969,1735649441085,-500.0,0.00019178,2]
[347273970,1735649441095,-500.0,0.00019178,2]
[347273971,1735649441106,-500.0,0.00019178,2]
[347273972,1735649441115,-500.0,0.00019178,2]
[347273973,1735649441125,-500.0,0.00019178,2]
[347273974,1735649441135,-500.0,0.00019178,2]
[347273975,1735649441145,-500.0,0.00019178,2]
[347273976,1735649441155,-481.94,0.00019178,2]
[347273977,1735649441166,-500.0,0.00019178,2]
[347273978,1735649441177,-500.0,0.00019178,2]
[347273979,1735649441187,-511.25,0.00019178,2]
[347273980,1735649441196,-500.0,0.00019178,2]
[347273981,1735649441207,-5464.83,0.00019178,2]
[347273982,1735649441217,-500.0,0.00019178,2]
[347273983,1735649441227,-500.0,0.00019178,2]
[347273984,1735649441237,-500.0,0.00019178,2]
[347273985,1735649441247,-212.28412777,0.00019178,2]
[347274014,1735649993993,151.54099593,0.0002218,60]
[347274019,1735650265294,500.0,0.00022182,120]
[347274058,1735650631932,-275.530759,0.00013155,2]
[347274059,1735650631942,-275.530759,0.00013288,2]
[347274060,1735650631952,-275.530759,0.00013973,2]
[347274061,1735650631961,-500.0,0.00016973,2]
[347274062,1735650631970,-300.0,0.00016999,2]
[347274063,1735650631979,-428903.20491091,0.00017,2]
[347274064,1735650631989,-500.0,0.00017521,2]
[347274065,1735650631998,-24900.0,0.00017744,2]
[347274066,1735650632007,-681.6397504,0.0001813,2]
[347274067,1735650632017,-420.0,0.00018567,2]
[347274068,1735650632026,-1032.06614895,0.00018964,2]
[347274069,1735650632036,-186.90332614,0.00019077,2]
[347274073,1735650632146,-202.854,0.00019078,2]
[347274075,1735650632156,-578.90035122,0.00019078,2]
[347274077,1735650632166,-500.0,0.00019173,2]
[347274079,1735650632176,-500.0,0.00019177,2]
[347274080,1735650632185,-498.36971157,0.00019177,2]
[347274081,1735650632195,-500.0,0.00019177,2]
[347274082,1735650632204,-500.0,0.00019177,2]
[347274083,1735650632214,-500.0,0.00019177,2]
[347274084,1735650632224,-437.41033854,0.00019177,2]
[347274085,1735650632233,-500.0,0.00019177,2]
[347274086,1735650632242,-500.0,0.00019177,2]
[347274087,1735650632252,-405.78789979,0.00019177,2]
[347274088,1735650632261,-500.0,0.00019177,2]
[347274089,1735650632270,-500.0,0.00019177,2]
[347274090,1735650632280,-500.0,0.00019177,2]
[347274091,1735650632289,-500.0,0.00019177,2]
[347274092,1735650632298,-500.0,0.00019177,2]
[347274093,1735650632307,-500.0,0.00019177,2]
[347274094,1735650632316,-500.0,0.00019177,2]
[347274095,1735650632325,-500.0,0.00019177,2]
[347274096,1735650632334,-500.0,0.00019177,2]
[347274097,1735650632344,-500.0,0.00019177,2]
[347274098,1735650632353,-500.0,0.00019177,2]
[347274099,1735650632362,-500.0,0.00019177,2]
[347274100,1735650632371,-500.0,0.00019177,2]
[347274101,1735650632380,-500.0,0.00019177,2]
[347274102,1735650632393,-411.399881,0.00019177,2]
[347274103,1735650632402,-500.0,0.00019177,2]
[347274104,1735650632412,-500.0,0.00019177,2]
[347274105,1735650632422,-500.0,0.00019177,2]
[347274106,1735650632431,-500.0,0.00019177,2]
[347274107,1735650632440,-500.0,0.00019177,2]
[347274108,1735650632450,-500.0,0.00019177,2]
[347274109,1735650632459,-500.0,0.00019177,2]
[347274110,1735650632468,-500.0,0.00019177,2]
[347274111,1735650632478,-563.75875401,0.00019177,2]
[347274112,1735650632487,-1086.71198838,0.00019178,2]
[347274113,1735650632496,-1550.70951684,0.00019178,2]
[347274114,1735650632505,-500.0,0.00019178,2]
[347274115,1735650632515,-500.77914922,0.00019178,2]
[347274116,1735650632524,-501.05565639,0.00019178,2]
[347274117,1735650632533,-500.0,0.00019178,2]
[347274118,1735650632543,-500.0,0.00019178,2]
[347274119,1735650632552,-500.0,0.00019178,2]
[347274120,1735650632561,-500.0,0.00019178,2]
[347274121,1735650632570,-500.0,0.00019178,2]
[347274122,1735650632579,-500.0,0.00019178,2]
[347274123,1735650632588,-500.0,0.00019178,2]
[347274124,1735650632597,-500.0,0.00019178,2]
[347274125,1735650632607,-500.63681276,0.00019178,2]
[347274126,1735650632617,-500.0,0.00019178,2]
[347274127,1735650632626,-500.0,0.00019178,2]
[347274128,1735650632636,-500.0,0.00019178,2]
[347274129,1735650632645,-500.0,0.00019178,2]
[347274130,1735650632656,-500.0,0.00019178,2]
[347274131,1735650632669,-500.0,0.00019178,2]
[347274133,1735650632678,-500.0,0.00019178,2]
[347274134,1735650632687,-500.0,0.00019178,2]
[347274136,1735650632696,-502.42405366,0.00019178,2]
[347274138,1735650632707,-579.29246002,0.00019178,2]
[347274140,1735650632716,-500.0,0.00019178,2]
[347274142,1735650632725,-500.0,0.00019178,2]
[347274144,1735650632736,-500.0,0.00019178,2]
[347274146,1735650632746,-500.0,0.00019178,2]
[347274149,1735650632755,-457.40202271,0.00019178,2]
[347274151,1735650632764,-500.0,0.00019178,2]
[347274152,1735650632774,-247.10149344,0.00019178,2]
[347274155,1735650632783,-500.0,0.00019178,2]
[347274156,1735650632792,-500.0,0.00019178,2]
[347274159,1735650632802,-500.0,0.00019178,2]
[347274160,1735650632811,-500.0,0.00019178,2]
[347274162,1735650632821,-500.0,0.00019178,2]
[347274165,1735650632830,-502.15083437,0.00019178,2]
[347274166,1735650632839,-500.0,0.00019178,2]
[347274169,1735650632849,-500.0,0.00019178,2]
[347274171,1735650632859,-500.0,0.00019178,2]
[347274173,1735650632868,-500.0,0.00019178,2]
[347274175,1735650632877,-504.79608361,0.00019178,2]
[347274176,1735650632888,-500.0,0.00019178,2]
[347274179,1735650632898,-500.0,0.00019178,2]
[347274180,1735650632907,-500.0,0.00019178,2]
[347274182,1735650632916,-500.0,0.00019178,2]
[347274184,1735650632926,-500.0,0.00019178,2]
[347274186,1735650632935,-500.0,0.00019178,2]
[347274188,1735650632944,-500.0,0.00019178,2]
[347274189,1735650632953,-354.34053768,0.00019178,2]
[347274190,1735650632962,-316.31506539,0.00019178,2]
[347274191,1735650632970,-500.0,0.00019178,2]
[347274192,1735650632979,-500.0,0.00019178,2]
[347274194,1735650632988,-500.0,0.00019178,2]
[347274195,1735650632998,-500.0,0.00019178,2]
[347274196,1735650633007,-500.0,0.00019178,2]
[347274197,1735650633016,-506.98079391,0.00019178,2]
[347274198,1735650633025,-500.0,0.00019178,2]
[347274199,1735650633035,-500.0,0.00019178,2]
[347274200,1735650633045,-500.0,0.00019178,2]
[347274201,1735650633054,-500.0,0.00019178,2]
[347274202,1735650633063,-500.0,0.00019178,2]
[347274203,1735650633073,-500.0,0.00019178,2]
[347274204,1735650633083,-500.0,0.00019178,2]
[347274205,1735650633092,-500.0,0.00019178,2]
[347274206,1735650633102,-503.87565652,0.00019178,2]
[347274207,1735650633112,-415.07863044,0.00019178,2]
[347274208,1735650633121,-427.6374243,0.00019178,2]
[347274210,1735650633131,-500.0,0.00019178,2]
[347274211,1735650633145,-514.52587394,0.00019178,2]
[347274212,1735650633154,-500.0,0.00019178,2]
[347274213,1735650633164,-500.0,0.00019178,2]
[347274214,1735650633173,-500.0,0.00019178,2]
[347274215,1735650633184,-500.0,0.00019178,2]
[347274216,1735650633194,-315.07224997,0.00019178,2]
[347274217,1735650633204,-500.0,0.00019178,2]
[347274219,1735650633214,-500.0,0.00019178,2]
[347274221,1735650633225,-501.01467848,0.00019178,2]
[347274222,1735650633236,-500.0,0.00019178,2]
[347274223,1735650633247,-500.0,0.00019178,2]
[347274224,1735650633258,-500.0,0.00019178,2]
[347274225,1735650633269,-500.0,0.00019178,2]
[347274226,1735650633279,-500.0,0.00019178,2]
[347274227,1735650633290,-500.0,0.00019178,2]
[347274228,1735650633300,-500.0,0.00019178,2]
[347274229,1735650633310,-500.0,0.00019178,2]
[347274230,1735650633321,-500.0,0.00019178,2]
[347274231,1735650633330,-500.0,0.00019178,2]
[347274232,1735650633340,-507.72780485,0.00019178,2]
[347274233,1735650633349,-500.0,0.00019178,2]
[347274234,1735650633359,-500.0,0.00019178,2]
[347274235,1735650633369,-504.32997768,0.00019178,2]
[347274236,1735650633378,-500.0,0.00019178,2]
[347274237,1735650633390,-500.0,0.00019178,2]
[347274238,1735650633400,-500.0,0.00019178,2]
[347274239,1735650633409,-500.0,0.00019178,2]
[347274240,1735650633419,-244.75750517,0.00019178,2]
[347274241,1735650633428,-500.0,0.00019178,2]
[347274242,1735650633438,-500.89231329,0.00019178,2]
[347274243,1735650633448,-500.0,0.00019178,2]
[347274244,1735650633457,-500.0,0.00019178,2]
[347274245,1735650633470,-501.68849599,0.00019178,2]
[347274246,1735650633479,-500.0,0.00019178,2]
[347274247,1735650633489,-500.0,0.00019178,2]
[347274248,1735650633498,-500.0,0.00019178,2]
[347274249,1735650633509,-500.0,0.00019178,2]
[347274250,1735650633518,-500.0,0.00019178,2]
[347274251,1735650633528,-500.0,0.00019178,2]
[347274252,1735650633537,-500.0,0.00019178,2]
[347274253,1735650633547,-503.33833498,0.00019178,2]
[347274254,1735650633556,-500.0,0.00019178,2]
[347274255,1735650633566,-500.0,0.00019178,2]
[347274256,1735650633576,-500.0,0.00019178,2]
[347274257,1735650633586,-500.0,0.00019178,2]
[347274258,1735650633595,-500.0,0.00019178,2]
[347274259,1735650633604,-283.16970756,0.00019178,2]
[347274260,1735650633614,-500.0,0.00019178,2]
[347274261,1735650633626,-500.0,0.00019178,2]
[347274262,1735650633638,-500.0,0.00019178,2]
[347274263,1735650633650,-500.0,0.00019178,2]
[347274264,1735650633661,-500.0,0.00019178,2]
[347274265,1735650633670,-500.0,0.00019178,2]
[347274266,1735650633680,-500.0,0.00019178,2]
[347274267,1735650633690,-500.0,0.00019178,2]
[347274268,1735650633700,-321.78427328,0.00019178,2]
[347274269,1735650633710,-500.0,0.00019178,2]
[347274270,1735650633720,-500.0,0.00019178,2]
[347274271,1735650633732,-500.0,0.00019178,2]
[347274272,1735650633743,-500.0,0.00019178,2]
[347274273,1735650633753,-500.0,0.00019178,2]
[347274274,1735650633763,-500.0,0.00019178,2]
[347274275,1735650633773,-500.0,0.00019178,2]
[347274276,1735650633783,-503.07474765,0.00019178,2]
[347274277,1735650633793,-500.0,0.00019178,2]
[347274278,1735650633803,-500.59192339,0.00019178,2]
[347274279,1735650633812,-505.68100544,0.00019178,2]
[347274280,1735650633822,-500.0,0.00019178,2]
[347274281,1735650633832,-500.0,0.00019178,2]
[347274282,1735650633843,-500.0,0.00019178,2]
[347274283,1735650633853,-500.0,0.00019178,2]
[347274284,1735650633862,-500.0,0.00019178,2]
[347274285,1735650633872,-500.0,0.00019178,2]
[347274286,1735650633882,-502.61,0.00019178,2]
[347274287,1735650633893,-500.0,0.00019178,2]
[347274288,1735650633903,-500.0,0.00019178,2]
[347274289,1735650633913,-500.0,0.00019178,2]
[347274290,1735650633923,-500.0,0.00019178,2]
[347274291,1735650633933,-500.0,0.00019178,2]
[347274292,1735650633942,-549.51201818,0.00019178,2]
[347274293,1735650633952,-500.0,0.00019178,2]
[347274294,1735650633961,-500.0,0.00019178,2]
[347274295,1735650633970,-500.0,0.00019178,2]
[347274296,1735650633979,-517.39897919,0.00019178,2]
[347274297,1735650633988,-500.0,0.00019178,2]
[347274298,1735650633998,-500.0,0.00019178,2]
[347274299,1735650634008,-500.0,0.00019178,2]
[347274300,1735650634017,-500.0,0.00019178,2]
[347274301,1735650634026,-500.0,0.00019178,2]
[347274302,1735650634035,-500.0,0.00019178,2]
[347274303,1735650634045,-500.0,0.00019178,2]
[347274304,1735650634055,-500.0,0.00019178,2]
[347274305,1735650634064,-500.0,0.00019178,2]
[347274306,1735650634074,-500.0,0.00019178,2]
[347274307,1735650634083,-500.0,0.00019178,2]
[347274308,1735650634092,-500.0,0.00019178,2]
[347274309,1735650634101,-298.58472088,0.00019178,2]
[347274310,1735650634111,-500.0,0.00019178,2]
[347274311,1735650634120,-466.01786884,0.00019178,2]
[347274312,1735650634130,-500.0,0.00019178,2]
[347274313,1735650634141,-500.0,0.00019178,2]
[347274314,1735650634151,-500.0,0.00019178,2]
[347274315,1735650634160,-500.0,0.00019178,2]
[347274316,1735650634170,-500.0,0.00019178,2]
[347274317,1735650634180,-500.0,0.00019178,2]
[347274318,1735650634190,-561.8715722,0.00019178,2]
[347274319,1735650634200,-500.0,0.00019178,2]
[347274320,1735650634209,-500.0,0.00019178,2]
[347274321,1735650634220,-500.0,0.00019178,2]
[347274322,1735650634230,-500.46783122,0.00019178,2]
[347274323,1735650634325,-500.0,0.00019178,2]
[347274324,1735650634336,-500.0,0.00019178,2]
[347274325,1735650634346,-500.0,0.00019178,2]
[347274326,1735650634356,-500.0,0.00019178,2]
[347274327,1735650634366,-500.0,0.00019178,2]
[347274328,1735650634376,-500.0,0.00019178,2]
[347274329,1735650634387,-500.0,0.00019178,2]
[347274330,1735650634397,-500.0,0.00019178,2]
[347274331,1735650634407,-500.0,0.00019178,2]
[347274332,1735650634416,-500.0,0.00019178,2]
[347274333,1735650634426,-500.0,0.00019178,2]
[347274334,1735650634436,-500.0,0.00019178,2]
[347274335,1735650634447,-500.0,0.00019178,2]
[347274336,1735650634457,-500.0,0.00019178,2]
[347274337,1735650634466,-500.0,0.00019178,2]
[347274338,1735650634478,-500.0,0.00019178,2]
[347274339,1735650634488,-500.0,0.00019178,2]
[347274340,1735650634498,-500.0,0.00019178,2]
[347274341,1735650634508,-500.0,0.00019178,2]
[347274342,1735650634518,-500.0,0.00019178,2]
[347274343,1735650634528,-500.0,0.00019178,2]
[347274344,1735650634538,-1120.68,0.00019178,2]
[347274345,1735650634548,-500.0,0.00019178,2]
[347274346,1735650634558,-500.0,0.00019178,2]
[347274347,1735650634568,-500.0,0.00019178,2]
[347274348,1735650634579,-500.0,0.00019178,2]
[347274349,1735650634589,-500.0,0.00019178,2]
[347274350,1735650634599,-500.0,0.00019178,2]
[347274351,1735650634610,-522.92383466,0.00019178,2]
[347274352,1735650634621,-537.3940834,0.00019178,2]
[347274353,1735650634631,-500.0,0.00019178,2]
[347274354,1735650634644,-540.49419282,0.00019178,2]
[347274355,1735650634656,-500.0,0.00019178,2]
[347274356,1735650634669,-500.0,0.00019178,2]
[347274357,1735650634680,-500.0,0.00019178,2]